bitfinex/quotes_BTCUSD_20211001
["timestamp","ask_amount","ask_price","bid_price","bid_amount"]
[1633113241447,0.20911906,47816.0,47804.0,0.05737802]
[1633113241649,0.20911906,47816.0,47805.0,0.0005301]
[1633113241849,0.00127216,47812.0,47805.0,0.0005301]
[1633113242050,0.20910824,47809.0,47805.0,0.0005301]
[1633113242253,0.20910824,47809.0,47803.0,0.06809639]
[1633113242254,0.313671,47807.0,47803.0,0.06809639]
[1633113242449,0.18469186,47806.0,47803.0,0.06809639]
[1633113242750,0.20911906,47816.0,47803.0,0.06809639]
[1633113242751,0.00126968,47818.0,47804.0,0.10298955]
[1633113242951,0.00126968,47818.0,47808.0,0.05678787]
[1633113243151,0.00126968,47818.0,47809.0,0.37253563]
[1633113243351,0.0012592,47824.0,47811.0,0.0430106]
[1633113243552,4.16932485,47825.0,47814.0,0.313522]
[1633113243751,4.16932485,47825.0,47815.0,0.65631674]
[1633113243752,0.7249,47823.0,47815.0,0.65631674]
[1633113243953,3.95176427,47825.0,47824.0,0.35084437]
[1633113244351,3.95201518,47825.0,47824.0,0.35084437]
[1633113244758,4.18564384,47825.0,47824.0,0.35084437]
[1633113245150,3.97120502,47825.0,47824.0,0.35084437]
[1633113245352,3.97120502,47825.0,47824.0,0.66879844]
[1633113245554,3.97120502,47825.0,47824.0,0.67002033]
[1633113246153,3.97120502,47825.0,47824.0,0.35206626]
[1633113246551,3.95201518,47825.0,47824.0,0.01331076]
[1633113247356,3.95212445,47825.0,47824.0,0.01331076]
[1633113247554,4.16835445,47825.0,47824.0,0.01331076]
[1633113247755,4.30210445,47825.0,47824.0,7.6e-07]
[1633113247954,4.31550445,47825.0,47824.0,7.6e-07]
[1633113248753,4.51550445,47825.0,47824.0,7.6e-07]
[1633113248955,5.924e-05,47823.0,47810.0,0.33930704]
[1633113249156,0.20908811,47817.0,47805.0,0.30231222]
[1633113249355,8.366e-05,47811.0,47805.0,0.04744002]
[1633113249555,0.20908811,47817.0,47800.0,0.05687373]
[1633113249556,7.171e-05,47810.0,47800.0,0.05687373]
[1633113249758,7.171e-05,47810.0,47806.0,0.03453738]
[1633113249959,7.171e-05,47810.0,47800.0,0.05687373]
[1633113250160,7.171e-05,47810.0,47801.0,0.03319909]
[1633113250357,7.171e-05,47810.0,47802.0,0.21623]
[1633113250563,0.0004,47833.0,47830.0,0.6939849]
[1633113250762,4.44758292,47840.0,47831.0,1.3574146]
[1633113250763,3.4828112,47835.0,47831.0,1.3574146]
[1633113250960,4.44758292,47840.0,47835.0,0.02632801]
[1633113250961,3.32881907,47840.0,47835.0,0.02632801]
[1633113251160,3.32881907,47840.0,47839.0,3.920879]
[1633113251161,1.4311484,47840.0,47839.0,3.920879]
[1633113251359,1.4311484,47840.0,47839.0,5.95900748]
[1633113251360,0.06192012,47840.0,47839.0,5.95900748]
[1633113251558,0.00042012,47840.0,47839.0,3.48586808]
[1633113251757,4.10176166,47846.0,47840.0,0.85]
[1633113251958,4.10176166,47846.0,47844.0,0.05628131]
[1633113252158,4.01176166,47846.0,47845.0,1.29656871]
[1633113252357,1.47408673,47846.0,47845.0,3.36422866]
[1633113252568,0.01,47849.0,47846.0,2.5]
[1633113252760,0.00032,47847.0,47846.0,1.05205132]
[1633113252959,0.01,47849.0,47846.0,0.63635142]
[1633113252960,0.10930059,47848.0,47846.0,0.63635142]
[1633113253161,2.484,47845.0,47842.0,0.05735456]
[1633113253358,2.5,47846.0,47842.0,0.0012926]
[1633113253359,0.00124701,47843.0,47842.0,0.0012926]
[1633113253558,0.00124701,47843.0,47842.0,0.5012926]
[1633113253559,0.00024701,47843.0,47842.0,0.5012926]
[1633113253760,0.00576189,47849.0,47843.0,0.313273]
[1633113253957,0.00576189,47849.0,47844.0,1.59032435]
[1633113254159,0.00576189,47849.0,47845.0,1.41474013]
[1633113254357,0.23328289,47850.0,47847.0,0.00127322]
[1633113254559,0.23328289,47850.0,47848.0,0.0184]
[1633113254560,0.61330767,47850.0,47848.0,0.0184]
[1633113254760,0.23454046,47850.0,47848.0,0.0184]
[1633113254959,0.20462299,47849.0,47848.0,0.0184]
[1633113255163,0.20409289,47849.0,47848.0,0.0184]
[1633113255360,0.5433275,47849.0,47848.0,0.0184]
[1633113255560,0.89067876,47849.0,47848.0,0.0084]
[1633113255760,2.5,47848.0,47845.0,0.19310013]
[1633113255962,0.00127985,47846.0,47845.0,0.19310013]
[1633113256161,0.20824786,47846.0,47845.0,0.19310013]
[1633113256362,0.00122676,47846.0,47845.0,0.19310013]
[1633113256966,0.23086426,47850.0,47845.0,0.19310013]
[1633113257162,0.23086426,47850.0,47847.0,0.313277]
[1633113257463,0.23086426,47850.0,47847.0,0.331677]
[1633113257667,0.00011931,47849.0,47847.0,0.331677]
[1633113257863,4.81274979,47851.0,47849.0,0.09917384]
[1633113258064,4.39023594,47851.0,47850.0,1.54569422]
[1633113258265,3.55512394,47851.0,47850.0,0.54622432]
[1633113258463,3.54512394,47851.0,47850.0,0.57622432]
[1633113258666,3.54512394,47851.0,47850.0,0.20512129]
[1633113258863,3.54512394,47851.0,47850.0,0.2411132]
[1633113259064,3.5463947,47851.0,47850.0,0.0167]
[1633113259462,3.5463947,47851.0,47850.0,0.19892929]
[1633113259663,3.79526456,47851.0,47850.0,0.19892929]
[1633113259865,3.79526456,47851.0,47850.0,0.18222929]
[1633113260064,3.79026456,47851.0,47850.0,0.18222929]
[1633113260463,3.5413947,47851.0,47850.0,0.18222929]
[1633113260663,3.23713556,47851.0,47850.0,0.40542929]
[1633113260863,3.23713556,47851.0,47850.0,0.18222929]
[1633113261066,3.22713556,47851.0,47850.0,0.18222929]
[1633113261267,3.22833984,47851.0,47850.0,0.18222929]
[1633113261464,3.18833984,47851.0,47850.0,0.21885066]
[1633113261666,3.20010203,47851.0,47850.0,0.42212929]
[1633113261863,3.20222203,47851.0,47850.0,0.24148355]
[1633113262064,3.20222203,47851.0,47850.0,0.19892929]
[1633113262264,3.20222203,47851.0,47850.0,0.24521661]
[1633113262471,3.20222203,47851.0,47850.0,0.19892929]
[1633113262472,3.42440871,47851.0,47850.0,0.19892929]
[1633113262664,3.42440871,47851.0,47850.0,0.23400475]
[1633113262867,3.42566432,47851.0,47850.0,0.19892929]
[1633113263065,3.41269785,47851.0,47850.0,0.23238827]
[1633113263266,3.41269785,47851.0,47850.0,0.21844593]
[1633113263464,3.41269785,47851.0,47850.0,0.26069845]
[1633113263666,3.35269785,47851.0,47850.0,0.21844593]
[1633113263870,3.35269785,47851.0,47835.0,0.02632801]
[1633113264068,3.35269785,47851.0,47821.0,0.03]
[1633113264069,0.47284198,47824.0,47821.0,0.03]
[1633113264266,0.47284198,47824.0,47815.0,0.04]
[1633113264267,0.15186313,47823.0,47822.0,0.85053]
[1633113264466,0.28461907,47824.0,47823.0,0.03857014]
[1633113264668,0.00122166,47835.0,47824.0,3.0]
[1633113264864,0.00122166,47835.0,47828.0,0.25623]
[1633113265065,0.00122166,47835.0,47834.0,0.00013141]
[1633113265265,0.00122166,47835.0,47834.0,0.25333141]
[1633113265472,0.21324755,47841.0,47838.0,0.21623]
[1633113265667,0.30385954,47841.0,47834.0,0.00013141]
[1633113265868,0.30385954,47841.0,47839.0,0.18807642]
[1633113265869,0.21324755,47841.0,47839.0,0.18807642]
[1633113266266,0.21324755,47841.0,47840.0,0.03734855]
[1633113266464,0.21324755,47841.0,47839.0,0.18807642]
[1633113266667,0.36613871,47840.0,47839.0,0.18807642]
[1633113266865,0.46885428,47840.0,47834.0,0.00013141]
[1633113267066,2.5,47839.0,47833.0,0.34216132]
[1633113267269,0.00120802,47834.0,47831.0,0.20700785]
[1633113267468,2.70706735,47832.0,47824.0,0.22569028]
[1633113267667,0.20706735,47832.0,47824.0,0.02183]
[1633113267868,0.00128937,47832.0,47826.0,0.04157272]
[1633113268072,0.12458938,47828.0,47827.0,0.25753479]
[1633113268268,0.00128937,47832.0,47828.0,0.04197006]
[1633113268468,0.00127166,47829.0,47827.0,0.00014337]
[1633113268669,0.00127166,47829.0,47827.0,0.02133541]
[1633113268868,0.1803491,47831.0,47828.0,0.21636142]
[1633113269072,0.00123893,47837.0,47830.0,0.21623]
[1633113269267,0.00123893,47837.0,47831.0,0.22529886]
[1633113269469,0.11007621,47839.0,47834.0,0.313369]
[1633113270069,0.11007621,47839.0,47834.0,0.35580807]
[1633113270674,0.19041279,47841.0,47836.0,0.417769]
[1633113270868,0.00121528,47843.0,47842.0,0.00255026]
[1633113271067,0.31043453,47843.0,47842.0,0.00255026]
[1633113271268,0.30505803,47843.0,47842.0,0.00255026]
[1633113272466,0.31641256,47843.0,47842.0,0.00255026]
[1633113273872,2.5,47842.0,47840.0,0.03571682]
[1633113274070,0.30505803,47843.0,47842.0,0.02113413]
[1633113274470,0.0012235,47843.0,47842.0,0.02113413]
[1633113274673,2.81037711,47851.0,47842.0,0.29699856]
[1633113274873,2.81037711,47851.0,47845.0,0.03]
[1633113275071,2.81037711,47851.0,47846.0,0.05829973]
[1633113275271,2.81037711,47851.0,47847.0,0.4273982]
[1633113275471,2.81037711,47851.0,47850.0,0.31181805]
[1633113275672,2.81037711,47851.0,47850.0,1.06568692]
[1633113275874,2.81049653,47851.0,47850.0,0.52370101]
[1633113276072,2.81049653,47851.0,47850.0,0.22813966]
[1633113276273,2.62872287,47851.0,47850.0,0.54353427]
[1633113276472,2.62872287,47851.0,47850.0,0.58529771]
[1633113276673,2.62872287,47851.0,47850.0,0.19127368]
[1633113276873,2.62872287,47851.0,47850.0,0.52545641]
[1633113277073,2.62872287,47851.0,47850.0,0.56998004]
[1633113277272,2.62872287,47851.0,47850.0,0.52545641]
[1633113277273,2.62672287,47851.0,47850.0,0.52545641]
[1633113277473,2.62672287,47851.0,47850.0,0.57349974]
[1633113277773,2.62672287,47851.0,47850.0,0.57007229]
[1633113277976,2.6381029,47851.0,47850.0,0.52545641]
[1633113278174,2.6381029,47851.0,47850.0,0.23663771]
[1633113278377,2.6381029,47851.0,47850.0,0.52332919]
[1633113278573,2.63821203,47851.0,47850.0,0.55684028]
[1633113278773,2.63821203,47851.0,47850.0,0.19127368]
[1633113278975,2.63821203,47851.0,47850.0,0.22863816]
[1633113279173,2.63821203,47851.0,47850.0,0.19127368]
[1633113279376,2.63821203,47851.0,47850.0,0.22607617]
[1633113279574,2.626832,47851.0,47850.0,0.21237693]
[1633113279775,2.626832,47851.0,47850.0,0.24855129]
[1633113279975,2.626832,47851.0,47850.0,0.54624487]
[1633113280176,2.626832,47851.0,47850.0,0.24274567]
[1633113280439,2.626832,47851.0,47850.0,0.53715965]
[1633113280576,2.626832,47851.0,47850.0,0.57844678]
[1633113280776,2.32386679,47851.0,47850.0,0.20737693]
[1633113280981,2.32386679,47851.0,47850.0,0.25023345]
[1633113281177,2.32386679,47851.0,47850.0,0.20737693]
[1633113281376,2.32386679,47851.0,47850.0,0.25686182]
[1633113281377,2.17844271,47851.0,47850.0,0.25686182]
[1633113281577,2.17844271,47851.0,47850.0,0.40717693]
[1633113281778,2.17844271,47851.0,47850.0,0.45540479]
[1633113282079,2.17844271,47851.0,47850.0,0.93346004]
[1633113282281,2.17844271,47851.0,47850.0,0.96747639]
[1633113282480,2.17844271,47851.0,47850.0,0.92495615]
[1633113282678,2.17844271,47851.0,47850.0,0.95973247]
[1633113282882,2.17844271,47851.0,47850.0,0.59485351]
[1633113283280,2.17844271,47851.0,47850.0,0.42161426]
[1633113283485,2.1898228,47851.0,47850.0,0.38607368]
[1633113283680,2.19104831,47851.0,47850.0,0.24820147]
[1633113283878,2.19104831,47851.0,47850.0,0.2115]
[1633113284080,2.1898228,47851.0,47850.0,0.25912784]
[1633113284280,2.1898228,47851.0,47850.0,0.26822784]
[1633113284479,2.1898228,47851.0,47850.0,0.2206]
[1633113284680,2.1898228,47851.0,47850.0,0.26232663]
[1633113284879,2.1898228,47851.0,47850.0,0.2206]
[1633113285079,2.17844271,47851.0,47850.0,0.29001561]
[1633113285284,2.17844271,47851.0,47850.0,0.24740725]
[1633113285481,2.17844271,47851.0,47850.0,0.29243258]
[1633113285679,2.17844271,47851.0,47850.0,0.24740725]
[1633113285879,2.17844271,47851.0,47850.0,0.28612754]
[1633113286086,2.17844271,47851.0,47850.0,0.24740725]
[1633113286279,2.17844271,47851.0,47850.0,0.29225473]
[1633113286479,2.17844271,47851.0,47850.0,0.24740725]
[1633113286683,2.17844271,47851.0,47850.0,0.29517852]
[1633113286883,2.17844271,47851.0,47850.0,0.24740725]
[1633113287080,2.17844271,47851.0,47850.0,0.29420426]
[1633113287281,2.17844271,47851.0,47850.0,0.24740725]
[1633113287480,2.17844271,47851.0,47850.0,0.28381207]
[1633113287680,2.17844271,47851.0,47850.0,0.24740725]
[1633113287881,2.17844271,47851.0,47850.0,0.29603081]
[1633113288081,2.17844271,47851.0,47850.0,0.24740725]
[1633113288282,2.17844271,47851.0,47850.0,0.62192324]
[1633113288483,2.17844271,47851.0,47850.0,0.76804111]
[1633113288685,2.17344271,47851.0,47850.0,0.74513992]
[1633113288882,2.17344271,47851.0,47850.0,0.69033669]
[1633113289080,2.17344271,47851.0,47850.0,0.73369472]
[1633113289280,2.17344271,47851.0,47850.0,0.69033669]
[1633113289484,2.17344271,47851.0,47850.0,0.35948912]
[1633113289684,2.17344271,47851.0,47850.0,0.26638191]
[1633113289884,2.18482286,47851.0,47850.0,0.226304]
[1633113290082,2.18605015,47851.0,47850.0,0.25412943]
[1633113290282,2.18605015,47851.0,47850.0,0.214604]
[1633113290482,1.9322978,47851.0,47850.0,0.255212]
[1633113290684,1.9231978,47851.0,47850.0,0.57474371]
[1633113290882,1.61901695,47851.0,47850.0,0.80826777]
[1633113291085,1.61901695,47851.0,47850.0,0.42854561]
[1633113291288,1.61901695,47851.0,47850.0,0.60319453]
[1633113291483,1.61901695,47851.0,47850.0,0.55659925]
[1633113291683,1.61901695,47851.0,47850.0,0.77274708]
[1633113291885,1.61901695,47851.0,47850.0,0.73614232]
[1633113292083,1.61901695,47851.0,47850.0,0.78194653]
[1633113292283,1.61901695,47851.0,47850.0,0.73614232]
[1633113292537,1.61901695,47851.0,47850.0,0.78161516]
[1633113292739,1.61901695,47851.0,47850.0,0.55659925]
[1633113292938,1.61901695,47851.0,47850.0,0.60302153]
[1633113293139,1.61901695,47851.0,47850.0,0.55659925]
[1633113293338,1.61901695,47851.0,47850.0,0.93945338]
[1633113293537,1.61901695,47851.0,47850.0,0.8901249]
[1633113293738,1.61901695,47851.0,47850.0,0.92349922]
[1633113293942,1.61901695,47851.0,47850.0,0.8901249]
[1633113294139,1.61901695,47851.0,47850.0,0.55659925]
[1633113294339,1.61901695,47851.0,47850.0,0.6334569]
[1633113294540,1.61901695,47851.0,47850.0,1.44068598]
[1633113294742,1.61901695,47851.0,47850.0,1.44121608]
[1633113294940,1.61901695,47851.0,47850.0,1.44068598]
[1633113295340,1.61901695,47851.0,47850.0,1.21748598]
[1633113295541,1.61901695,47851.0,47850.0,1.18748598]
[1633113295743,1.11903695,47851.0,47850.0,0.64130388]
[1633113295943,1.13163272,47851.0,47850.0,0.64130388]
[1633113296143,1.13163272,47851.0,47850.0,0.53989925]
[1633113296344,0.94986174,47851.0,47850.0,0.53989925]
[1633113296844,0.94986174,47851.0,47850.0,0.71560795]
[1633113297045,0.94986174,47851.0,47850.0,0.70101633]
[1633113298044,0.94986174,47851.0,47850.0,0.70087233]
[1633113298245,0.94986174,47851.0,47850.0,0.64427126]
[1633113299054,0.94986174,47851.0,47850.0,0.97809651]
[1633113299247,0.94864619,47851.0,47850.0,1.0913598]
[1633113299446,0.94864619,47851.0,47850.0,1.36318665]
[1633113299647,0.94864619,47851.0,47850.0,1.0913598]
[1633113299848,0.94864619,47851.0,47850.0,0.75753455]
[1633113300247,0.94864619,47851.0,47850.0,0.64427126]
[1633113300847,0.64571323,47851.0,47850.0,0.64427126]
[1633113301247,0.64571323,47851.0,47850.0,0.62316801]
[1633113301652,0.63557741,47851.0,47850.0,0.64427126]
[1633113301850,0.13559741,47851.0,47850.0,0.64427126]
[1633113302049,0.03121078,47851.0,47850.0,0.64427126]
[1633113302448,0.00121078,47851.0,47850.0,0.75770593]
[1633113302648,0.00121078,47851.0,47850.0,0.64427126]
[1633113303048,0.00121078,47851.0,47850.0,0.45920688]
[1633113303848,0.00121078,47851.0,47850.0,0.57264874]
[1633113304253,0.00121078,47851.0,47850.0,0.62959858]
[1633113304454,0.00121078,47851.0,47850.0,0.45920688]
[1633113304649,0.00121078,47851.0,47850.0,0.45973698]
[1633113305048,0.00121078,47851.0,47850.0,0.50126886]
[1633113305250,0.00121078,47851.0,47850.0,0.67165696]
[1633113305447,0.00121078,47851.0,47850.0,0.66583781]
[1633113305648,0.0004,47853.0,47850.0,0.66583781]
[1633113305849,0.0004,47853.0,47852.0,0.04362709]
[1633113306048,0.00160171,47853.0,47852.0,0.11490386]
[1633113306252,0.23611861,47853.0,47852.0,0.1149029]
[1633113306451,0.00237142,47853.0,47852.0,0.1149029]
[1633113306651,0.00237142,47853.0,47852.0,0.03840489]
[1633113306863,2.5,47851.0,47845.0,0.417657]
[1633113307055,0.00122661,47846.0,47845.0,0.417657]
[1633113307253,0.11504507,47850.0,47846.0,0.03634961]
[1633113307451,0.11504507,47850.0,47844.0,0.417742]
[1633113307651,0.00506507,47850.0,47846.0,0.03851898]
[1633113307853,0.00506507,47850.0,47841.0,0.38969241]
[1633113308051,9.516e-05,47849.0,47842.0,0.0005301]
[1633113308352,0.20255868,47845.0,47844.0,0.208855]
[1633113308551,0.20255868,47845.0,47844.0,0.522159]
[1633113308753,9.516e-05,47849.0,47845.0,0.04925161]
[1633113308952,9.516e-05,47849.0,47846.0,0.0005301]
[1633113309155,0.00123904,47848.0,47845.0,0.04925161]
[1633113309356,0.00123904,47848.0,47841.0,0.18082141]
[1633113309357,0.0005301,47845.0,47841.0,0.18082141]
[1633113309754,0.21612909,47844.0,47841.0,0.18082141]
[1633113309952,0.0005301,47845.0,47841.0,0.18082141]
[1633113310153,0.11439189,47842.0,47841.0,0.18082141]
[1633113310353,0.00441189,47842.0,47841.0,0.39705141]
[1633113310552,0.00441189,47842.0,47841.0,0.21632555]
[1633113310755,0.00441189,47842.0,47841.0,0.21685565]
[1633113310953,0.00181002,47842.0,47841.0,0.21685565]
[1633113311152,0.00181002,47842.0,47841.0,2.16968655]
[1633113311352,0.0005301,47845.0,47842.0,0.11573196]
[1633113311553,0.0005301,47845.0,47844.0,0.21623]
[1633113311955,0.0005301,47845.0,47844.0,0.0005301]
[1633113312152,0.0005301,47845.0,47843.0,0.0005301]
[1633113312352,0.11265819,47844.0,47843.0,0.0005301]
[1633113312554,0.37565883,47844.0,47843.0,0.313344]
[1633113312752,0.37565883,47844.0,47843.0,0.31341566]
[1633113314355,2.89705441,47844.0,47839.0,0.0005301]
[1633113314562,0.39705441,47844.0,47843.0,0.00043943]
[1633113314955,0.39717441,47844.0,47843.0,0.00043943]
[1633113315158,0.15717441,47844.0,47843.0,0.00124561]
[1633113315557,0.03588118,47844.0,47843.0,0.00124561]
[1633113316360,6.11516537,47820.0,47816.0,0.34127946]
[1633113316557,4.60041808,47820.0,47819.0,0.66491262]
[1633113316757,2.97673157,47820.0,47819.0,3.27912915]
[1633113316959,0.03588118,47844.0,47819.0,3.27912915]
[1633113316960,0.02026024,47844.0,47820.0,1.11727777]
[1633113317165,0.02026024,47844.0,47843.0,0.00126904]
[1633113317558,0.02014024,47844.0,47843.0,0.31451804]
[1633113317761,0.02014024,47844.0,47843.0,0.529479]
[1633113318158,0.2056742,47853.0,47843.0,0.54220496]
[1633113318359,8.259e-05,47844.0,47843.0,0.67222583]
[1633113318558,8.259e-05,47844.0,47843.0,0.32597496]
[1633113319957,0.02022289,47844.0,47843.0,0.313249]
[1633113320157,0.00024289,47844.0,47843.0,0.529479]
[1633113320759,0.00024289,47844.0,47843.0,0.66642975]
[1633113320960,0.21912972,47845.0,47843.0,0.45019975]
[1633113321161,0.08413504,47849.0,47843.0,0.45019975]
[1633113321761,0.08413504,47849.0,47844.0,0.0343073]
[1633113322160,0.23439228,47848.0,47844.0,0.0343073]
[1633113323561,0.23439228,47848.0,47844.0,0.0527073]
[1633113323763,0.08413504,47849.0,47845.0,0.05709923]
[1633113323964,0.08413504,47849.0,47846.0,0.0343103]
[1633113324766,0.08413504,47849.0,47846.0,0.0293103]
[1633113324767,1.58966998,47847.0,47846.0,0.0293103]
[1633113324968,0.18966998,47847.0,47845.0,0.02278635]
[1633113325165,0.00012,47848.0,47845.0,0.02278635]
[1633113325366,0.00012,47848.0,47844.0,0.0184]
[1633113325565,0.01007825,47846.0,47844.0,0.0184]
[1633113326166,0.01007825,47846.0,47844.0,0.331726]
[1633113327574,5.825e-05,47846.0,47844.0,0.331726]
[1633113328169,5.825e-05,47846.0,47845.0,0.1999]
[1633113328770,0.09967269,47846.0,47845.0,0.41613]
[1633113328973,0.00974876,47846.0,47845.0,0.41613]
[1633113329174,2.45693332,47823.0,47822.0,0.28423519]
[1633113329378,0.4997067,47823.0,47822.0,0.62737]
[1633113329584,0.4997067,47823.0,47822.0,0.32978793]
[1633113329585,3.52820576,47823.0,47822.0,0.32978793]
[1633113329776,2.53107229,47823.0,47822.0,0.11367693]
[1633113329972,1.07097323,47823.0,47822.0,0.11367693]
[1633113330373,0.61734549,47823.0,47822.0,0.11367693]
[1633113330572,0.61734549,47823.0,47822.0,0.00025093]
[1633113330573,0.39671673,47823.0,47822.0,0.00025093]
[1633113330973,0.39671673,47823.0,47822.0,0.18368747]
[1633113331172,0.37831673,47823.0,47822.0,0.18368747]
[1633113331370,0.37331673,47823.0,47822.0,0.18368747]
[1633113331772,0.00329673,47823.0,47822.0,0.49712847]
[1633113331972,0.00329673,47823.0,47822.0,0.71323947]
[1633113332774,0.00341673,47823.0,47822.0,0.71323947]
[1633113333971,0.1965461,47823.0,47822.0,0.71323947]
[1633113334170,0.0065261,47823.0,47822.0,0.71323947]
[1633113334677,0.48908802,47819.0,47813.0,0.18590918]
[1633113334879,0.48908802,47819.0,47804.0,1.34119273]
[1633113334880,0.22750805,47812.0,47807.0,0.2277694]
[1633113335074,0.00124609,47808.0,47804.0,1.22788858]
[1633113335277,0.22750805,47812.0,47811.0,0.00013147]
[1633113335476,0.00748805,47812.0,47811.0,0.00013147]
[1633113335871,0.00748805,47812.0,47811.0,0.31365047]
[1633113336072,0.00748805,47812.0,47811.0,0.44310347]
[1633113336073,0.01241621,47812.0,47811.0,0.44310347]
[1633113336472,0.01241621,47812.0,47811.0,0.54326636]
[1633113337272,0.00239621,47812.0,47811.0,0.54326636]
[1633113339473,0.00239621,47812.0,47811.0,0.74306636]
[1633113340075,0.08928955,47819.0,47811.0,0.67560317]
[1633113340273,0.08928955,47819.0,47815.0,0.129448]
[1633113340479,0.08928955,47819.0,47816.0,7.171e-05]
[1633113340875,0.29294241,47819.0,47816.0,0.31358471]
[1633113341474,0.21262335,47817.0,47816.0,0.31358471]
[1633113341877,0.21262335,47817.0,47816.0,0.56727379]
[1633113342077,0.19136102,47817.0,47816.0,0.56227379]
[1633113342278,0.00134102,47817.0,47816.0,0.56227379]
[1633113342679,0.00134102,47817.0,47816.0,0.85018702]
[1633113343477,0.00134102,47817.0,47816.0,0.84988702]
[1633113345079,0.00134102,47817.0,47816.0,0.98218702]
[1633113345281,0.00134102,47817.0,47816.0,0.38598908]
[1633113345480,0.00134102,47817.0,47816.0,0.25368908]
[1633113345683,0.08928955,47819.0,47816.0,0.28406445]
[1633113345880,0.00930955,47819.0,47818.0,0.129437]
[1633113346080,0.00930955,47819.0,47818.0,0.15368257]
[1633113346480,0.00432749,47819.0,47818.0,0.15368257]
[1633113348881,0.00432749,47819.0,47818.0,0.28598257]
[1633113350083,0.00389475,47819.0,47818.0,0.28598257]
[1633113350483,1.25389475,47819.0,47818.0,0.28098257]
[1633113350684,0.00389475,47819.0,47818.0,0.15154557]
[1633113350888,0.00389475,47819.0,47818.0,0.28098157]
[1633113351289,0.20288341,47822.0,47819.0,0.129433]
[1633113351488,0.20416988,47822.0,47820.0,0.02424495]
[1633113351689,0.20416988,47822.0,47821.0,0.229425]
[1633113352548,0.20771059,47822.0,47821.0,0.229425]
[1633113353751,0.20771059,47822.0,47821.0,0.542907]
[1633113355152,0.20771059,47822.0,47821.0,0.229425]
[1633113355753,0.20771059,47822.0,47821.0,0.1]
[1633113356553,0.20416988,47822.0,47821.0,0.1]
[1633113356754,0.20416988,47822.0,47821.0,0.13035582]
[1633113357355,0.8554247,47822.0,47821.0,0.13035582]
[1633113357557,0.2054247,47822.0,47821.0,0.13035582]
[1633113357955,0.20896541,47822.0,47821.0,0.1]
[1633113360359,0.20642412,47822.0,47821.0,0.1]
[1633113360759,0.00354071,47822.0,47821.0,0.1]
[1633113361160,0.00354071,47822.0,47821.0,0.229425]
[1633113361560,0.00354071,47822.0,47821.0,0.56912626]
[1633113361762,0.00354071,47822.0,47821.0,0.58752626]
[1633113362160,1.50281564,47832.0,47821.0,0.61788208]
[1633113362361,1.50281564,47832.0,47821.0,0.48845708]
[1633113362561,1.00281564,47832.0,47821.0,0.48845708]
[1633113362764,1.00281564,47832.0,47821.0,0.71648017]
[1633113362962,1.00281564,47832.0,47821.0,0.71639439]
[1633113363161,0.20127953,47822.0,47821.0,0.14875582]
[1633113363362,0.00407018,47831.0,47821.0,0.247822]
[1633113363562,0.0012407,47828.0,47822.0,0.417927]
[1633113363763,0.0012407,47828.0,47821.0,0.1272]
[1633113363764,2.5,47827.0,47821.0,0.1272]
[1633113363972,2.5,47827.0,47813.0,0.21874355]
[1633113363973,0.47209483,47816.0,47813.0,0.1664]
[1633113364164,2.40246975,47814.0,47803.0,0.0004]
[1633113364361,0.19177064,47806.0,47803.0,0.0004]
[1633113364562,0.19177064,47806.0,47805.0,0.249]
[1633113364763,0.19230074,47806.0,47805.0,0.24913148]
[1633113364965,0.19177064,47806.0,47805.0,0.24913148]
[1633113365163,0.19230074,47806.0,47805.0,0.24913148]
[1633113365664,0.19177064,47806.0,47805.0,0.24913148]
[1633113366663,0.19230074,47806.0,47805.0,0.24913148]
[1633113367063,0.19177064,47806.0,47805.0,0.24913148]
[1633113367660,0.19177064,47806.0,47805.0,0.18169889]
[1633113368063,0.19177064,47806.0,47805.0,0.13269889]
[1633113368463,0.19230074,47806.0,47805.0,0.13269889]
[1633113368662,0.19177064,47806.0,47805.0,0.13269889]
[1633113368861,0.19177064,47806.0,47805.0,0.10013148]
[1633113369263,0.49588917,47806.0,47805.0,0.10013148]
[1633113369662,0.19230074,47806.0,47805.0,0.10013148]
[1633113369865,0.19177064,47806.0,47805.0,0.10013148]
[1633113370475,0.59227631,47806.0,47805.0,0.10013148]
[1633113370666,0.80967434,47806.0,47805.0,0.10013148]
[1633113370863,2.5,47805.0,47803.0,0.0004]
[1633113371063,0.21866313,47804.0,47803.0,0.0004]
[1633113371262,0.61116162,47804.0,47803.0,0.0004]
[1633113371669,0.62956162,47804.0,47803.0,0.0004]
[1633113372065,0.23759323,47804.0,47803.0,0.0004]
[1633113372265,1.23759323,47804.0,47803.0,0.0004]
[1633113372867,2.35159323,47804.0,47803.0,0.0004]
[1633113373268,2.35159323,47804.0,47803.0,0.03297532]
[1633113373668,2.35159323,47804.0,47803.0,7.532e-05]
[1633113373669,3.73759323,47804.0,47803.0,7.532e-05]
[1633113373869,3.52144623,47804.0,47803.0,7.532e-05]
[1633113374068,1.02144623,47804.0,47803.0,7.532e-05]
[1633113374272,1.77144623,47804.0,47803.0,7.532e-05]
[1633113374470,1.78839336,47804.0,47801.0,0.0004]
[1633113374868,0.0005301,47803.0,47801.0,0.0004]
[1633113375071,0.0184,47802.0,47801.0,0.0004]
[1633113375468,0.0189301,47802.0,47801.0,0.0004]
[1633113375871,0.5,47803.0,47801.0,0.0004]
[1633113376071,0.5005301,47803.0,47801.0,0.0004]
[1633113376471,0.0005301,47802.0,47801.0,0.0004]
[1633113376673,0.50179808,47803.0,47801.0,0.0004]
[1633113376879,0.27290412,47802.0,47801.0,0.0004]
[1633113377273,0.27343422,47802.0,47801.0,0.0004]
[1633113378475,0.27303422,47802.0,47801.0,0.0004]
[1633113378677,0.27303422,47802.0,47801.0,0.01673323]
[1633113379076,1.07303422,47802.0,47801.0,0.01673323]
[1633113379481,2.40318122,47802.0,47801.0,0.01673323]
[1633113379676,0.27250412,47802.0,47801.0,0.01673323]
[1633113379876,0.28944479,47802.0,47801.0,0.0004]
[1633113380076,0.28997489,47802.0,47801.0,0.0004]
[1633113380477,1.62012189,47802.0,47801.0,0.0004]
[1633113380676,2.716147,47801.0,47800.0,0.0001]
[1633113380877,2.71735081,47801.0,47800.0,0.0001]
[1633113381075,2.71788091,47801.0,47800.0,0.0001]
[1633113381477,3.03164191,47801.0,47800.0,0.0001]
[1633113381677,3.53164191,47801.0,47800.0,0.0001]
[1633113382084,4.64564191,47801.0,47800.0,0.0001]
[1633113382478,2.14564191,47801.0,47800.0,0.0001]
[1633113383480,1.03164191,47801.0,47800.0,0.0001]
[1633113383682,1.03111181,47801.0,47800.0,0.0001]
[1633113384085,2.14564191,47801.0,47800.0,0.0001]
[1633113384283,1.03111181,47801.0,47800.0,0.01643719]
[1633113384486,1.03111181,47801.0,47781.0,0.47781337]
[1633113384487,0.19014225,47786.0,47781.0,0.47781337]
[1633113384690,0.19014225,47786.0,47782.0,0.129553]
[1633113384882,0.19014225,47786.0,47785.0,0.00023917]
[1633113385085,0.19014225,47786.0,47785.0,0.12479417]
[1633113385283,0.19014225,47786.0,47785.0,1.12479417]